bitfinex-derivatives/quotes_ETHF0:USTF0_20251204
["timestamp","ask_amount","ask_price","bid_price","bid_amount"]
[1764869407714,41.89179436,3161.2,3161.1,4.95403287]
[1764869407912,41.89179436,3161.2,3161.1,1.74623287]
[1764869408213,41.89179436,3161.2,3161.1,0.00263287]
[1764869408411,1.0892,3160.9,3160.8,0.00474601]
[1764869408915,1.0892,3160.6,3160.5,1.4339]
[1764869409212,40.80259436,3161.2,3160.5,0.5659]
[1764869409402,40.80259436,3161.2,3161.1,1.7436]
[1764869409809,1.0892,3161.1,3161.0,0.5054]
[1764869410006,43.4755735,3161.2,3160.8,0.00474601]
[1764869410007,1.0892,3160.9,3160.8,1.74834601]
[1764869410214,3.2078,3160.9,3160.8,1.74834601]
[1764869411410,40.80259436,3161.2,3160.8,1.74834601]
[1764869411718,0.00259436,3161.2,3161.1,1.7436]
[1764869412510,0.9041,3160.9,3160.8,1.74834601]
[1764869413015,1.8088,3160.9,3160.8,0.87274601]
[1764869413213,1.8088,3160.9,3160.8,0.00474601]
[1764869413412,0.90669436,3161.2,3161.1,0.868]
[1764869413607,1.81139436,3161.2,3161.1,0.868]
[1764869413805,0.9041,3160.9,3160.8,1.74834601]
[1764869414012,1.8088,3160.9,3160.8,0.00474601]
[1764869414615,42.6088,3160.9,3160.8,0.00474601]
[1764869415211,42.6088,3160.9,3160.8,1.74834601]
[1764869415417,41.7041,3160.9,3160.8,1.74834601]
[1764869415718,47.58487914,3160.9,3160.8,0.00474601]
[1764869417520,0.5369,3160.5,3160.0,3.7132]
[1764869417716,1.8088,3160.1,3160.0,3.2078]
[1764869417918,1.8088,3160.1,3158.0,0.5054]
[1764869417919,1.8088,3159.6,3159.5,1.7436]
[1764869418108,5.0166,3159.7,3159.6,0.868]
[1764869418412,2.3457,3160.0,3159.9,0.868]
[1764869418618,2.3457,3160.0,3159.9,0.87022983]
[1764869418921,5.0166,3160.2,3160.1,0.868]
[1764869419119,2.3457,3160.0,3159.9,0.00222983]
[1764869419528,43.1457,3160.0,3159.9,0.00222983]
[1764869419723,43.1457,3160.0,3159.9,0.87022983]
[1764869420017,40.8,3160.0,3159.9,1.74582983]
[1764869421821,40.8,3160.0,3159.9,0.00222983]
[1764869421822,41.3369,3160.0,3159.9,0.00222983]
[1764869422224,41.3369,3160.0,3159.0,3.7132]
[1764869423229,41.3369,3160.0,3159.0,3.71555346]
[1764869423827,3.2078,3159.8,3159.0,3.71555346]
[1764869424519,40.8,3160.0,3159.9,1.7436]
[1764869424722,1.81354601,3160.3,3160.2,0.868]
[1764869424920,0.90884601,3160.3,3160.2,1.7436]
[1764869425122,41.70884601,3160.3,3160.2,1.7436]
[1764869425323,41.70884601,3160.3,3159.8,3.2078]
[1764869425517,41.70884601,3160.3,3159.5,0.1607]
[1764869426124,1.81354601,3160.3,3159.5,0.3189]
[1764869426528,40.8,3160.2,3159.5,0.3189]
[1764869426929,40.8,3160.2,3160.1,1.7436]
[1764869427125,0.00474601,3160.3,3160.1,1.7436]
[1764869427327,2.3457,3161.0,3160.9,0.868]
[1764869427626,4.11449436,3161.2,3161.1,0.868]
[1764869427829,5.01919436,3161.2,3161.1,0.868]
[1764869428126,45.81919436,3161.2,3161.1,0.868]
[1764869430124,5.01919436,3161.2,3161.1,0.868]
[1764869430330,3.21039436,3161.2,3161.1,1.7436]
[1764869430932,5.01919436,3161.2,3161.1,0.868]
[1764869431227,3.21039436,3161.2,3161.1,1.7436]
[1764869431429,0.00259436,3161.2,3161.1,1.7436]
[1764869431633,0.00474601,3161.5,3161.4,1.7436]
[1764869432723,0.00840776,3161.5,3161.4,1.74588275]
[1764869436841,40.8,3161.9,3161.8,1.6764]
[1764869437137,4.9012,3162.1,3162.0,0.851]
[1764869437434,0.5249,3162.0,3161.5,0.5691]
[1764869437633,0.8455,3161.5,3161.4,4.06108275]
[1764869437841,0.52799718,3162.0,3161.4,4.88648275]
[1764869438232,2.2183,3161.5,3161.4,4.06108275]
[1764869438432,1.6934,3161.5,3161.4,4.88648275]
[1764869438633,2.2183,3161.5,3161.4,4.06108275]
[1764869438940,2.2183,3161.5,3161.4,3.21008275]
[1764869439141,4.89127914,3161.5,3161.4,0.00228275]
[1764869448042,4.89127914,3161.5,3160.8,0.00474601]
[1764869448043,1.7997,3160.9,3160.8,0.00474601]
[1764869448239,3.19837914,3160.5,3159.7,3.2078]
[1764869448439,40.8,3160.4,3159.7,3.2078]
[1764869449046,40.8,3160.4,3159.7,4.999328]
[1764869449340,40.80474601,3160.4,3159.7,5.00407401]
[1764869449843,0.8976,3159.8,3159.7,5.00407401]
[1764869450547,2.40399091,3160.3,3159.7,5.00407401]
[1764869450945,0.8976,3159.8,3159.7,5.00407401]
[1764869451148,1.7997,3159.8,3159.7,4.09787401]
[1764869451441,1.7997,3159.8,3159.7,3.21617401]
[1764869451951,1.7997,3159.8,3159.7,4.09787401]
[1764869452246,1.7997,3159.8,3159.7,3.21617401]
[1764869452748,1.7997,3159.8,3159.7,4.09787401]
[1764869452947,1.7997,3159.8,3159.7,5.00407401]
[1764869454151,2.40399091,3159.9,3159.7,5.00407401]
[1764869454343,4.20369091,3159.9,3159.8,0.8817]
[1764869454544,1.7997,3159.8,3159.7,4.09787401]
[1764869454843,42.5997,3159.8,3159.7,0.00837401]
[1764869456841,42.5997,3159.8,3158.8,3.2078]
[1764869457242,2.92939091,3159.5,3158.8,3.2078]
[1764869457441,0.8976,3158.9,3158.8,4.9957]
[1764869457649,1.7997,3158.9,3158.8,4.9957]
[1764869457851,1.80219772,3158.9,3158.8,4.99808628]
[1764869458450,1.80219772,3158.9,3158.8,0.00238628]
[1764869459049,1.80219772,3158.9,3158.8,0.88408628]
[1764869459849,1.80219772,3158.9,3158.8,0.00238628]
[1764869460051,0.8976,3158.5,3158.4,5.00464067]
[1764869460245,0.90234601,3158.8,3158.7,1.7879]
[1764869460455,0.00474601,3158.8,3158.7,1.7879]
[1764869460653,0.5254,3158.0,3157.0,2.82720823]
[1764869460957,8.01578182,3157.2,3157.1,0.00341565]
[1764869461250,8.01578182,3157.2,3155.5,0.5401]
[1764869461251,0.15835,3156.7,3155.5,0.5401]
[1764869461447,2.40399091,3155.6,3155.5,0.5401]
[1764869461643,2.40399091,3155.2,3154.5,0.5401]
[1764869461951,0.00474601,3156.4,3154.9,1.7879]
[1764869461952,2.40399091,3155.0,3154.9,1.7879]
[1764869462152,40.8,3155.0,3154.5,0.54409281]
[1764869462353,3.2078,3154.6,3154.5,2.33199281]
[1764869462660,3.2078,3155.0,3154.9,1.7879]
[1764869462953,0.00236389,3155.2,3155.1,1.7879]
[1764869463946,4.81034571,3155.2,3154.5,0.54409281]
[1764869464148,3.75869091,3154.6,3154.5,0.00399281]
[1764869464350,2.81389091,3154.6,3154.5,2.55769281]
[1764869464550,3.2078,3155.0,3154.9,1.741]
[1764869464747,0.00236389,3155.2,3155.1,1.741]
[1764869465245,1.78686389,3155.2,3154.5,0.81669281]
[1764869465449,3.2078,3154.9,3154.8,1.741]
[1764869465952,40.8,3155.0,3154.9,1.741]
[1764869466553,0.00236389,3155.2,3155.1,1.741]
[1764869467254,0.00236389,3155.2,3154.5,0.81669281]
[1764869467255,0.86976389,3155.2,3154.5,0.81669281]
[1764869467465,4.9923,3154.9,3154.5,0.81669281]
[1764869467665,4.0752,3154.9,3154.8,0.8531]
[1764869467853,3.2078,3154.9,3154.8,1.741]
[1764869469752,3.2078,3154.9,3154.8,7.741]
[1764869469957,3.2078,3155.4,3155.3,1.741]
[1764869470856,3.2078,3155.9,3155.3,10.701]
[1764869471064,3.2078,3155.9,3155.8,1.741]
[1764869471362,3.2078,3155.9,3155.1,3.36622]
[1764869471363,4.9923,3155.9,3155.1,3.2078]
[1764869471558,3.2078,3155.9,3155.8,1.741]
[1764869472057,0.00234633,3155.9,3155.8,1.741]
[1764869472370,0.00474601,3156.4,3156.3,1.741]
[1764869472864,0.00474601,3156.4,3156.3,7.741]
[1764869473058,3.2078,3156.7,3156.6,1.741]
[1764869473358,3.2078,3156.7,3155.9,3.36618]
[1764869473359,4.07803816,3156.7,3155.9,3.2078]
[1764869473560,3.2078,3156.2,3155.5,0.5401]
[1764869473761,3.2078,3156.2,3155.4,3.2078]
[1764869473961,3.24869091,3156.0,3155.4,3.2078]
[1764869474159,0.84945391,3156.0,3155.4,4.06565391]
[1764869474357,3.2078,3156.2,3156.1,1.741]
[1764869474561,3.2078,3156.6,3156.5,0.8879]
[1764869474755,3.2078,3156.6,3156.5,1.741]
[1764869476258,0.00283816,3156.7,3156.6,1.741]
[1764869477161,0.00475391,3156.9,3156.8,1.741]
[1764869477956,3.2078,3157.4,3157.3,1.741]
[1764869478159,3.21052429,3157.4,3157.3,1.7440785]
[1764869478560,0.00272429,3157.4,3157.3,1.7440785]
[1764869480262,0.00272429,3157.4,3157.3,0.8561785]
[1764869480757,1.78722429,3157.4,3157.3,0.0030785]
[1764869480965,4.99502429,3157.4,3157.3,0.0030785]
[1764869481660,5.80123607,3157.4,3157.3,0.0030785]
[1764869482062,5.80123607,3157.4,3157.0,0.00475391]
[1764869482063,1.7845,3157.1,3157.0,0.00475391]
[1764869482258,3.21052429,3157.4,3157.1,0.8531]
[1764869482456,0.80661065,3157.3,3157.1,0.8531]
[1764869482855,0.00272429,3157.4,3157.3,1.741]
[1764869483057,0.00272429,3157.4,3157.3,1.74463955]
[1764869484258,3.2078,3157.8,3157.7,1.741]
[1764869484766,3.2078,3157.8,3157.4,0.1583]
[1764869484767,4.0752,3157.8,3157.4,0.1583]
[1764869484962,3.2078,3157.8,3157.4,0.1583]
[1764869485160,3.21159753,3157.8,3157.4,0.1583]
[1764869485359,0.80882887,3157.7,3157.4,0.1583]
[1764869486165,0.80882887,3157.7,3157.6,1.741]
[1764869486365,3.21159753,3157.8,3157.7,0.8531]
[1764869486567,4.02111621,3157.8,3157.7,0.8531]
[1764869486865,0.00475391,3157.9,3157.7,10.9488]
[1764869487072,3.2078,3158.6,3158.5,1.741]
[1764869487269,4.01745995,3158.6,3158.5,1.741]
[1764869488162,0.81226873,3158.6,3158.5,1.741]
[1764869488367,0.00260878,3158.6,3158.5,1.741]
[1764869489168,0.00260878,3158.6,3158.5,1.89925]
[1764869489564,0.81287127,3158.6,3158.5,1.89925]
[1764869490167,0.00260878,3158.6,3158.5,1.741]
[1764869490861,0.00260878,3158.6,3158.1,3.2078]
[1764869490862,4.88807127,3158.6,3158.1,3.2078]
[1764869491067,1.7845,3158.1,3158.0,9.368]
[1764869491267,2.59476249,3158.1,3158.0,9.368]
[1764869491468,2.60460513,3158.1,3158.0,9.368]
[1764869491769,2.60460513,3158.1,3157.7,3.2078]
[1764869491770,1.68750513,3158.1,3157.7,3.2078]
[1764869491975,0.82010513,3158.0,3157.7,3.2078]
[1764869492171,3.2078,3158.2,3157.8,0.8531]
[1764869492172,0.82010513,3157.9,3157.8,0.8531]
[1764869492363,0.8674,3157.8,3157.7,3.2078]
[1764869492569,6.65726884,3157.8,3157.4,0.15831]
[1764869492770,0.82026884,3157.7,3157.4,0.15831]
[1764869492973,4.0525,3157.8,3157.4,0.15831]
[1764869493471,3.2078,3157.8,3157.7,1.741]
[1764869493669,4.02825528,3157.8,3157.7,1.741]
[1764869493868,4.02825528,3157.8,3157.7,0.8531]
[1764869494070,5.49285528,3157.8,3157.7,0.8531]
[1764869494474,4.02825528,3157.8,3157.7,2.8053]
[1764869495177,6.49885528,3157.8,3157.4,0.15831]
[1764869495476,0.82045528,3157.7,3157.4,0.15831]
[1764869495971,0.82045528,3157.7,3157.6,2.8053]
[1764869496872,1.4646,3158.1,3158.0,1.3447]
[1764869497070,2.28626333,3158.1,3158.0,1.3447]
[1764869497876,2.28626333,3158.1,3157.5,0.1583]
[1764869498078,0.82166333,3158.0,3157.5,0.1583]
[1764869498379,1.006,3157.8,3157.3,3.21143955]
[1764869498673,0.82166333,3157.7,3157.6,1.3447]
[1764869498981,2.8378,3157.4,3157.3,0.00363955]
[1764869499278,0.82166333,3157.4,3157.3,1.34833955]
[1764869499869,2.28626333,3157.4,3157.3,1.34833955]
[1764869500273,0.82166333,3157.4,3157.3,2.80893955]
[1764869500470,2.3886796,3158.1,3158.0,1.3447]
[1764869500471,3.2078,3158.1,3158.0,1.3447]
[1764869500871,3.2078,3158.1,3158.0,2.8053]
[1764869502071,4.8565,3158.1,3157.4,4.048]
[1764869502273,3.41819091,3158.0,3157.3,3.21143955]
[1764869502480,1.6487,3157.4,3157.3,3.21143955]
[1764869502674,3.2847,3157.4,3157.3,3.21143955]
[1764869503070,5.09099061,3158.0,3157.3,6.56363955]
[1764869503276,1.0142,3158.0,3157.3,6.56363955]
[1764869503976,3.2078,3158.1,3157.9,1.7058]
[1764869504281,3.2078,3158.1,3157.3,3.21143955]
[1764869504282,3.2078,3158.1,3158.0,3.3522]
[1764869504485,6.4925,3158.1,3157.6,0.1583]
[1764869504676,8.1652997,3158.1,3157.6,0.1583]
[1764869504879,8.1652997,3158.1,3157.3,3.21143955]
[1764869505383,1.6487,3157.4,3157.3,0.00363955]
[1764869505585,3.2847,3157.4,3157.3,0.00363955]
[1764869506281,5.68869091,3157.4,3157.3,0.00363955]
[1764869507373,3.2847,3157.4,3157.3,0.00363955]
[1764869507574,3.2078,3157.6,3157.3,1.70943955]
[1764869508073,1.6487,3156.8,3156.5,3.2078]
[1764869508284,3.2078,3156.8,3156.7,5.6492]
[1764869508586,4.8565,3157.2,3156.7,2.45534]
[1764869509183,4.8565,3157.2,3156.7,2.45895889]
[1764869509382,5.8707,3157.2,3156.7,2.45895889]
[1764869509779,3.2847,3156.8,3156.7,2.30061889]
[1764869510083,4.222,3157.2,3156.7,4.00641889]
[1764869511088,1.6487,3156.8,3156.7,2.30061889]
[1764869511782,4.222,3157.2,3156.7,5.65281889]
[1764869512581,0.82179552,3157.1,3156.7,5.65281889]
[1764869512782,0.82179552,3157.1,3157.0,3.3522]
[1764869513976,2.47049552,3157.1,3157.0,1.7058]
[1764869514176,1.0142,3157.0,3156.7,2.45895889]
[1764869515675,4.8565,3156.8,3156.7,2.30061889]
[1764869515879,6.4925,3156.8,3156.7,2.30061889]
[1764869516683,3.2078,3156.8,3156.7,3.35581889]
[1764869517082,3.2078,3157.2,3156.7,3.35581889]
[1764869517382,3.2078,3157.2,3157.1,1.7058]
[1764869517588,5.67774223,3157.2,3157.1,1.7058]
[1764869517891,3.2078,3157.2,3157.1,1.7058]
[1764869518087,3.2078,3157.2,3157.1,3.3522]
[1764869518291,0.00475391,3157.3,3157.2,3.3522]
[1764869519589,3.28945391,3157.3,3156.7,7.71661889]
[1764869520291,3.28945391,3157.3,3156.7,0.00361889]
[1764869521096,1.6487,3156.8,3156.7,0.00361889]
[1764869521392,3.2078,3157.1,3156.7,1.70941889]
[1764869521791,3.2847,3156.8,3156.7,0.00361889]
[1764869521990,4.10463108,3156.8,3156.7,0.00361889]
[1764869522183,3.2847,3156.7,3156.3,2.322]
[1764869522386,3.2847,3156.4,3155.2,3.36622]
[1764869522595,3.2078,3156.0,3155.2,11.07322]
[1764869523300,3.21151845,3156.0,3155.4,11.56909168]
[1764869523491,3.21151845,3156.0,3155.9,3.3522]
[1764869524890,5.79111845,3156.0,3155.4,12.30849168]
[1764869525092,5.79111845,3156.0,3155.4,11.41068168]
[1764869525396,3.2774,3155.5,3155.4,11.41068168]
[1764869525590,4.10851845,3156.0,3155.4,13.00568168]
[1764869526387,4.10851845,3156.0,3155.4,11.41068168]
[1764869526589,1.6826,3155.5,3155.4,11.41068168]
[1764869526798,3.2774,3155.5,3155.4,11.41068168]
[1764869526998,1.6826,3155.5,3155.4,11.41068168]
[1764869527200,1.6826,3155.5,3155.4,13.00568168]
[1764869527688,1.6826,3155.5,3155.4,11.41068168]
[1764869527887,4.10851845,3156.0,3155.4,13.00568168]
[1764869528288,3.2774,3155.5,3155.4,11.41068168]
[1764869528491,3.2774,3155.5,3155.4,0.00868168]
[1764869528896,3.2774,3154.9,3154.8,3.2078]
[1764869529091,1.6826,3154.9,3154.8,3.2078]
[1764869529793,3.2078,3155.6,3155.3,1.595]
[1764869530200,3.2078,3155.6,3154.8,3.2116915]
[1764869530201,1.6826,3155.4,3155.2,0.15842]
[1764869530396,1.6826,3154.9,3154.8,3.2116915]
[1764869530599,0.897,3155.4,3154.8,4.8066915]
[1764869531493,1.6826,3154.9,3154.8,4.8066915]
[1764869531698,1.6826,3154.9,3154.8,3.2116915]
[1764869532495,3.2078,3155.1,3154.8,1.5988915]
[1764869532698,1.6826,3154.9,3154.8,0.0038915]
[1764869533000,3.2774,3154.9,3154.8,0.0038915]
[1764869533194,1.6826,3154.9,3154.8,0.0038915]
[1764869533400,3.2078,3155.1,3154.8,1.5988915]
[1764869533596,3.2078,3155.1,3154.8,3.2283915]
[1764869533897,3.2078,3155.6,3155.0,3.2245]
[1764869534093,3.2078,3155.6,3155.0,3.38293]
[1764869534398,3.2078,3155.6,3155.5,3.2245]
[1764869534901,0.00371845,3156.0,3155.5,3.2245]
[1764869534902,0.00371845,3156.0,3155.7,3.2245]
[1764869535699,0.00371845,3156.0,3155.3,4.623]
[1764869535700,3.2774,3155.6,3155.0,0.15843]
[1764869535896,3.2774,3155.1,3154.8,0.0038915]
[1764869536097,0.897,3155.4,3155.0,1.595]
[1764869536302,0.897,3155.4,3154.8,0.0038915]
[1764869536303,3.21255391,3155.8,3155.3,3.2245]
[1764869536906,0.00475391,3155.8,3155.7,3.2245]
[1764869537201,0.00475391,3155.8,3155.7,1.595]
[1764869537812,0.00475391,3155.8,3155.7,3.2245]
[1764869537998,0.00371845,3156.0,3155.9,1.595]
[1764869539102,4.17811845,3156.0,3155.5,0.1584]
[1764869539395,2.58331845,3156.0,3155.9,1.595]
[1764869539601,0.00371845,3156.0,3155.9,3.2245]
[1764869539794,3.2078,3156.7,3155.8,5.682]
[1764869539795,3.2078,3156.7,3156.6,3.2245]
[1764869540302,3.2078,3157.1,3157.0,1.595]
[1764869540606,3.2078,3157.1,3157.0,3.2245]
[1764869540805,3.21078323,3157.1,3157.0,3.2245]
[1764869541108,4.89338323,3157.1,3156.7,0.00475391]
[1764869541300,0.00298323,3157.1,3157.0,1.595]
[1764869541506,0.00298323,3157.1,3157.0,3.2245]
[1764869541904,0.00475391,3157.4,3157.3,3.2245]
[1764869542909,0.00796832,3157.4,3157.3,3.22859971]
[1764869544703,0.00796832,3157.4,3157.3,3.38690971]
[1764869546504,2.68035062,3158.8,3157.3,3.38690971]
[1764869546505,3.2078,3158.4,3157.8,0.15829]
[1764869546709,3.2078,3158.9,3158.4,3.2245]
[1764869546909,3.2078,3158.9,3158.1,3.2078]
[1764869546910,3.2774,3158.2,3158.1,3.2078]
[1764869547207,3.2774,3158.2,3157.5,4.0102]
[1764869547414,4.1048,3158.5,3158.1,3.2245]
[1764869547603,4.10811179,3158.5,3158.1,3.2245]
[1764869547909,1.6826,3158.2,3158.1,1.595]
[1764869548206,0.00331179,3158.5,3158.4,3.2245]
[1764869549410,2.58291179,3158.5,3158.4,1.595]
[1764869549809,0.00331179,3158.5,3158.4,3.2245]
[1764869550414,1.6826,3158.4,3158.3,1.595]
[1764869550609,4.10811179,3158.5,3158.3,1.595]
[1764869550911,4.10811179,3158.5,3158.4,1.595]
[1764869551913,5.79071179,3158.5,3158.4,1.595]
[1764869552115,5.79071179,3158.5,3158.0,0.00475391]
[1764869552116,7.38551179,3158.5,3158.0,0.00475391]
[1764869552314,6.4852,3158.1,3158.0,0.00475391]
[1764869553706,3.2078,3158.1,3158.0,3.02425391]
[1764869553911,4.10811179,3158.5,3158.0,3.02425391]
[1764869554620,1.5764,3158.1,3158.0,1.57985391]
[1764869554819,3.066,3158.1,3158.0,0.00475391]
[1764869555011,6.2738,3158.1,3158.0,0.00475391]
[1764869555409,3.8947,3157.5,3157.4,3.2078]
[1764869555918,3.066,3157.4,3157.3,0.00409971]
[1764869556316,1.5764,3157.4,3157.3,0.00409971]
[1764869556516,3.066,3157.4,3157.3,0.00409971]
[1764869557621,1.5764,3157.4,3157.3,0.00409971]
[1764869557916,3.2078,3157.7,3157.4,1.5751]
[1764869558331,1.5764,3157.4,3157.3,0.00409971]
[1764869558533,3.066,3157.4,3157.3,0.00409971]
[1764869559733,3.066,3157.1,3157.0,0.00475391]
[1764869559931,6.2738,3157.1,3157.0,0.00475391]
[1764869560131,3.066,3156.6,3156.5,3.2078]
[1764869560526,1.5764,3156.6,3156.5,3.2078]
[1764869560731,0.8287,3157.0,3156.5,4.78592332]
[1764869560936,3.2078,3157.1,3156.9,1.5751]
[1764869561434,3.2078,3157.1,3156.7,0.00475391]
[1764869561435,3.066,3156.8,3156.7,0.00475391]
[1764869561833,1.5764,3156.8,3156.7,0.00475391]
[1764869562032,0.8287,3157.0,3156.7,3.02425391]
[1764869562536,2.9623,3156.8,3156.7,0.00475391]
[1764869563333,1.5764,3156.8,3156.7,1.40045391]
[1764869563735,0.8287,3157.0,3156.7,2.79395391]
[1764869563939,3.2078,3157.1,3157.0,1.3957]
[1764869564335,4.5374,3157.1,3157.0,1.3957]
[1764869565739,0.00475391,3157.3,3157.2,2.7892]
[1764869566134,1.3296,3157.0,3156.9,0.15833]
[1764869566434,0.00475391,3157.3,3156.9,2.94753]
[1764869566734,0.00475391,3157.3,3157.2,2.7892]
[1764869566928,2.72025391,3157.3,3156.9,0.15833]
[1764869567326,3.2078,3157.0,3156.9,1.55403]
[1764869567527,2.7155,3156.6,3156.5,0.00302332]
[1764869567743,0.7796,3157.0,3156.5,6.00002332]
[1764869567938,0.7796,3157.0,3156.5,2.79222332]
[1764869568235,0.7796,3157.0,3156.5,6.00002332]
[1764869568434,2.7155,3156.6,3156.5,0.00302332]
[1764869570733,2.7155,3156.6,3156.5,2.332e-05]
[1764869570933,3.4951,3156.5,3156.4,0.00475391]
[1764869571134,6.7029,3156.5,3156.4,0.00475391]
[1764869571839,6.7029,3156.5,3156.4,0.0075624]
[1764869573240,9.11212602,3156.5,3156.4,0.0075624]
[1764869573633,9.11212602,3156.5,3155.3,3.2078]
[1764869573634,2.7155,3155.4,3155.3,3.2078]
[1764869574635,2.71788737,3155.4,3155.3,3.21016539]
[1764869574934,2.71788737,3155.4,3155.3,0.00236539]
[1764869574935,5.12711339,3155.4,3155.3,0.00236539]
[1764869575242,2.7155,3155.1,3155.0,0.00475391]
[1764869576238,2.7155,3155.1,3155.0,0.00807851]
[1764869578841,2.7155,3154.9,3154.0,0.1274312]
[1764869579147,3.2078,3154.7,3154.1,0.15847]
[1764869579840,3.2078,3154.7,3154.1,0.16157203]
[1764869580247,2.7155,3154.2,3154.1,0.00310203]
[1764869581546,0.7796,3155.0,3154.6,2.7892]
[1764869582052,2.7155,3154.2,3154.1,0.00310203]
[1764869582851,2.7155,3154.2,3153.3,3.2078]
[1764869582852,2.7155,3153.8,3153.3,3.2078]
[1764869583051,0.7796,3154.0,3153.4,2.7892]
[1764869583052,0.00475391,3153.9,3153.4,2.7892]
[1764869583743,0.00475391,3153.9,3153.4,2.79204404]
[1764869584749,0.00475391,3153.9,3153.8,2.6643]
[1764869584947,0.00475391,3153.9,3153.8,2.82279]
[1764869585649,0.00475391,3153.9,3153.8,8.82279]
[1764869585854,3.2078,3154.8,3154.4,2.6643]
[1764869586049,3.2078,3154.8,3154.4,6.03056]
[1764869586349,3.21018737,3155.4,3154.9,1.2993]
[1764869587351,4.05318737,3155.4,3154.8,0.16319391]
[1764869587751,4.05318737,3155.4,3154.8,0.00475391]
[1764869588546,4.05318737,3155.4,3154.8,3.21255391]
[1764869588749,4.05318737,3155.4,3154.9,0.15843]
[1764869588954,5.38028737,3155.4,3154.9,0.15843]
[1764869590048,5.91678737,3155.4,3155.0,3.2078]
[1764869590251,2.7066,3154.9,3153.9,0.15848]
[1764869590448,2.7066,3153.9,3153.8,3.2078]
[1764869590749,0.843,3154.0,3153.8,4.5071]
[1764869591053,41.643,3154.5,3153.9,1.2993]
[1764869591443,1.3271,3153.9,3153.8,3.2078]
[1764869592049,2.7066,3153.5,3153.4,0.00284404]
[1764869592356,5.9144,3153.5,3152.8,3.2078]
[1764869592647,1.3271,3152.9,3152.8,3.2078]
[1764869592851,3.2078,3153.5,3152.8,4.5071]
[1764869593242,3.21023163,3153.5,3152.8,4.51037529]
[1764869594547,3.21023163,3153.5,3152.9,0.15853]
[1764869595545,2.7066,3152.9,3152.8,3.21107529]
[1764869595751,1.3271,3152.9,3152.8,3.21107529]
[1764869596956,0.843,3153.0,3152.8,4.51037529]
[1764869597653,2.7066,3152.9,3152.8,3.21107529]
[1764869598259,3.21023163,3153.5,3152.9,1.2993]
[1764869598452,1.3271,3153.0,3152.8,3.21107529]
[1764869599148,3.21023163,3153.5,3152.9,1.2993]
[1764869599453,3.21023163,3153.5,3153.4,1.2993]
[1764869600745,3.21023163,3153.5,3153.4,2.6643]
[1764869600954,0.00243163,3153.5,3153.4,2.6643]
[1764869601254,3.2078,3154.4,3153.7,2.6643]
[1764869601557,3.2078,3154.4,3153.7,5.8721]
[1764869602150,0.81616643,3154.3,3153.7,5.8721]
[1764869602345,0.00883322,3153.8,3153.7,2.6643]
[1764869603256,0.00883322,3153.8,3153.7,6.03059]
[1764869603451,4.0508,3154.8,3154.3,2.6643]
[1764869603651,0.81763438,3154.7,3154.6,1.2993]
[1764869603948,2.7066,3154.7,3154.2,0.15847]
[1764869604348,2.70931997,3154.7,3154.2,0.15847]
[1764869604858,0.81792719,3154.6,3154.2,0.15847]
[1764869605052,1.3271,3154.3,3154.2,0.15847]
[1764869605254,2.7066,3154.3,3154.2,0.15847]
[1764869605455,1.3271,3154.3,3154.2,1.45777]
[1764869605655,0.00271997,3154.7,3154.2,1.45777]
[1764869605959,0.81802201,3154.6,3154.2,1.45777]
[1764869606259,3.5496,3154.2,3154.1,0.00475391]
[1764869606955,4.36743925,3154.2,3154.1,0.00475391]
[1764869607458,3.2078,3154.4,3154.3,2.6643]
[1764869607646,4.02633024,3154.4,3154.3,2.6643]
[1764869607846,3.2078,3154.4,3154.3,2.6643]
[1764869608045,3.2078,3154.4,3154.3,2.82276]
[1764869608446,0.00271997,3154.7,3154.6,2.6643]
[1764869608957,0.00271997,3154.7,3154.6,2.82275]
[1764869612264,1.32981997,3154.7,3154.6,1.45775]
[1764869612660,0.00271997,3154.7,3154.6,2.82275]
[1764869613768,0.00271997,3154.7,3154.2,3.2078]
[1764869613769,0.00475391,3154.8,3154.7,2.98684]
[1764869613953,3.2078,3155.2,3155.1,2.98682]
[1764869614271,0.843,3156.0,3155.1,2.98682]
[1764869614272,3.2078,3155.7,3155.1,2.98682]
[1764869614663,3.2078,3155.7,3155.2,0.15842]
[1764869614963,2.916,3155.3,3155.2,0.00353759]
[1764869615260,2.916,3154.6,3154.5,3.2078]
[1764869615464,0.7502,3155.0,3153.5,0.6407]
[1764869615465,0.7502,3154.5,3154.1,3.21255391]
[1764869615667,1.4563,3154.2,3154.1,3.21255391]
[1764869615865,2.916,3154.2,3154.1,3.21255391]
[1764869616365,2.916,3154.2,3154.1,3.21592991]
[1764869618770,2.916,3154.2,3154.1,0.00812991]
[1764869620060,1.4563,3154.2,3154.1,1.46892991]
[1764869620262,3.958,3154.5,3154.1,2.83652991]
[1764869621358,1.4563,3154.2,3154.1,1.46892991]
[1764869621658,3.958,3154.5,3154.1,1.46892991]
[1764869621856,2.916,3154.2,3154.1,0.00812991]
[1764869622069,2.916,3154.2,3153.2,3.2078]
[1764869622267,1.4033,3153.3,3153.2,3.2078]
[1764869622468,2.866,3153.3,3152.7,3.2078]
[1764869622972,0.8047,3153.5,3153.2,4.6533]
[1764869623270,0.00338232,3153.5,3153.4,2.8956]
[1764869623562,1.4033,3153.3,3153.2,3.21143062]
[1764869624070,2.866,3153.3,3153.2,3.21143062]
[1764869624257,1.4033,3153.3,3153.2,3.21143062]
[1764869624461,0.00338232,3153.5,3153.4,1.4455]
[1764869624756,1.40668232,3153.5,3153.4,1.4455]
[1764869625070,2.866,3153.3,3153.2,3.21143062]
[1764869625270,2.866,3153.3,3153.2,0.00363062]
[1764869625564,1.4033,3153.3,3153.2,0.00363062]
[1764869625760,1.4033,3153.3,3153.2,1.44913062]
[1764869625961,0.00338232,3153.5,3153.4,1.4455]
[1764869626473,0.00338232,3153.5,3153.2,3.21143062]
[1764869626474,1.40668232,3153.5,3153.2,3.21143062]
[1764869627774,1.4033,3153.3,3153.2,3.21143062]
[1764869627966,1.4033,3153.3,3153.2,4.65693062]
[1764869628168,0.80808232,3153.5,3153.2,6.10703062]